bitfinex-derivatives/quotes_ETHF0:USTF0_20241013
["timestamp","ask_amount","ask_price","bid_price","bid_amount"]
[1728829132233,2.12877,2459.6,2459.3,1.32]
[1728829132435,1.7221,2459.6,2459.5,0.40668]
[1728829132745,2.14506,2459.7,2459.6,0.40667]
[1728829132941,2.14506,2459.7,2459.6,0.80587]
[1728829133234,2.14506,2459.7,2459.6,1.21667]
[1728829137445,3.20464173,2459.7,2459.6,1.21667]
[1728829138639,6.41244173,2459.7,2459.6,1.21667]
[1728829139337,4.26738173,2459.7,2459.6,2.53667]
[1728829139537,3.2078,2459.7,2459.6,2.53667]
[1728829139738,0.3955,2459.8,2459.7,0.40665]
[1728829139938,0.80213,2459.8,2459.7,0.40665]
[1728829140134,0.3955,2459.8,2459.7,0.40665]
[1728829140334,1.7155,2459.8,2459.7,0.40665]
[1728829140537,3.18171173,2459.8,2459.7,0.40665]
[1728829141544,1.7155,2459.8,2459.7,0.40665]
[1728829141742,0.3955,2459.8,2459.7,0.40665]
[1728829141937,4.26738173,2459.9,2459.7,0.40665]
[1728829141938,5.58738173,2459.9,2459.8,0.40663]
[1728829143044,0.40664,2459.8,2459.7,0.40664]
[1728829143342,1.72664,2459.8,2459.7,0.40664]
[1728829143549,1.32,2459.8,2459.6,0.81]
[1728829143750,2.14095,2459.7,2459.6,1.21665]
[1728829144949,3.0543,2459.7,2459.3,1.59896624]
[1728829145152,1.32,2459.4,2459.3,1.30772]
[1728829145346,1.72669,2459.5,2459.4,0.4067]
[1728829147346,1.32,2459.5,2459.4,0.4067]
[1728829148236,3.58685173,2459.6,2459.5,0.40668]
[1728829148439,2.52727,2459.6,2459.5,0.40668]
[1728829148738,3.58685173,2459.6,2459.5,0.40668]
[1728829148938,2.52727,2459.6,2459.5,0.40668]
[1728829149140,3.58685173,2459.6,2459.5,0.40668]
[1728829149545,1.46623173,2459.7,2459.6,0.40667]
[1728829149739,1.46623173,2459.7,2459.6,0.82217]
[1728829150050,2.78623173,2459.7,2459.6,0.82217]
[1728829153346,1.72665,2459.7,2459.6,0.82217]
[1728829153751,1.32,2459.7,2459.6,0.82217]
[1728829154250,2.77778173,2459.8,2459.7,0.40665]
[1728829154549,1.05958173,2459.8,2459.7,1.72665]
[1728829154847,3.2078,2459.9,2459.8,0.40663]
[1728829155148,3.2078,2459.9,2459.8,1.72663]
[1728829157947,1.72661,2460.0,2459.9,0.40662]
[1728829158449,2.78619173,2460.0,2459.9,0.40662]
[1728829158846,3.20709173,2460.0,2459.9,0.40662]
[1728829160850,2.80048173,2460.0,2459.9,0.40662]
[1728829161043,3.20708173,2460.0,2459.9,0.40662]
[1728829162347,2.80048173,2460.0,2459.9,0.40662]
[1728829162542,3.20708173,2460.0,2459.9,0.40662]
[1728829165348,3.20708173,2460.0,2459.6,2.1362]
[1728829165349,7.39539295,2460.0,2459.6,2.1362]
[1728829165551,4.67310517,2459.9,2459.8,0.40662]
[1728829166646,5.99310517,2459.9,2459.8,0.40662]
[1728829167550,4.93443,2459.9,2459.8,0.40662]
[1728829168244,6.52412295,2459.9,2459.8,0.40662]
[1728829170554,6.72754759,2459.9,2459.8,0.40662]
[1728829170754,6.52412295,2459.9,2459.8,0.40662]
[1728829171451,6.72754548,2459.9,2459.8,0.40662]
[1728829171955,6.72754236,2459.9,2459.8,0.40662]
[1728829174248,3.81784941,2459.9,2459.8,0.40662]
[1728829174456,6.72852033,2459.9,2459.8,0.40662]
[1728829175554,5.13784941,2459.9,2459.8,0.40662]
[1728829176154,0.40665,2459.8,2459.7,0.40664]
[1728829176454,0.40665,2459.7,2459.6,1.22285]
[1728829176756,2.54435,2459.7,2459.6,1.40812767]
[1728829177150,4.13512161,2459.7,2459.6,1.00147767]
[1728829177351,4.13512161,2459.7,2459.6,0.18527767]
[1728829177554,4.13512161,2459.7,2459.1,5.96306495]
[1728829177555,0.4067,2459.4,2459.2,2.79538624]
[1728829177763,1.72672,2459.3,2459.2,1.59896624]
[1728829178055,2.94822,2459.3,2459.2,0.18532092]
[1728829178254,3.60175568,2459.3,2459.1,4.5103]
[1728829178455,0.40673,2459.2,2459.1,4.01704]
[1728829178656,0.40673,2459.2,2459.1,2.05374467]
[1728829178862,1.46698568,2459.2,2459.1,0.99452415]
[1728829179660,2.78698568,2459.2,2459.1,0.4025]
[1728829180054,2.78698568,2459.2,2459.1,0.40675]
[1728829180255,2.78698568,2459.2,2459.1,0.59200831]
[1728829180463,2.78698568,2459.2,2459.0,1.20576]
[1728829180464,0.40675,2459.1,2459.0,1.20576]
[1728829180766,2.38025568,2459.1,2459.0,1.20576]
[1728829181261,1.32,2459.1,2459.0,1.20576]
[1728829182861,2.3797247,2459.1,2459.0,1.20576]
[1728829183363,1.32,2459.1,2459.0,1.20576]
[1728829183957,1.72675,2459.1,2459.0,1.20576]
[1728829184166,1.32,2459.1,2459.0,1.20576]
[1728829184356,1.72675,2459.1,2459.0,0.40676]
[1728829186055,1.32,2459.1,2459.0,0.40676]
[1728829186657,1.72675,2459.1,2459.0,0.40676]
[1728829189065,1.32,2459.1,2459.0,0.40676]
[1728829189365,1.72675,2459.1,2459.0,0.40676]
[1728829192866,1.32,2459.1,2459.0,0.40676]
[1728829193462,1.72675,2459.1,2459.0,0.40676]
[1728829193666,1.32,2459.1,2459.0,0.40676]
[1728829194474,1.72675,2459.1,2459.0,0.40676]
[1728829194662,1.32,2459.1,2459.0,0.40676]
[1728829196770,1.72675,2459.1,2459.0,0.40676]
[1728829196968,1.32,2459.1,2459.0,0.40676]
[1728829197576,1.72675,2459.1,2459.0,0.40676]
[1728829197964,1.32,2459.1,2459.0,0.40676]
[1728829198165,1.72675,2459.1,2459.0,0.40676]
[1728829199066,1.32,2459.1,2459.0,0.40676]
[1728829200564,1.72675,2459.1,2459.0,0.40676]
[1728829200760,1.32,2459.1,2459.0,0.40676]
[1728829201174,1.32,2459.1,2458.9,1.7436]
[1728829201469,1.32,2459.1,2459.0,0.40677]
[1728829202076,1.72675,2459.1,2459.0,0.40677]
[1728829204672,1.32,2459.1,2459.0,0.40677]
[1728829206374,1.72675,2459.1,2459.0,0.40677]
[1728829206571,1.32,2459.1,2459.0,0.40677]
[1728829209675,5.7493,2459.3,2459.2,0.40673]
[1728829212077,4.0175,2459.3,2459.2,0.40673]
[1728829212278,4.0175,2459.3,2459.2,1.72673]
[1728829212576,5.3375,2459.3,2459.2,0.40673]
[1728829212972,2.1297,2459.3,2459.2,0.40673]
[1728829213179,2.1297,2459.3,2459.2,1.20813]
[1728829214572,0.8097,2459.3,2459.2,2.52813]
[1728829215079,2.1297,2459.3,2459.2,1.20813]
[1728829215270,2.1297,2459.3,2459.2,0.40673]
[1728829218382,0.8097,2459.3,2459.2,0.40673]
[1728829218783,0.8097,2459.3,2459.2,0.81753]
[1728829219078,0.4115,2459.3,2459.2,0.81753]
[1728829220583,2.7912247,2459.3,2459.2,0.81753]
[1728829221572,2.7912247,2459.3,2459.2,1.00277617]
[1728829221773,2.7912247,2459.3,2459.2,0.81753]
[1728829222280,2.7912247,2459.3,2459.2,2.06672276]
[1728829223281,3.32108705,2459.3,2459.2,1.65592276]
[1728829224075,3.72780705,2459.3,2459.2,1.47061067]
[1728829224280,3.93126802,2459.3,2459.2,1.65597947]
[1728829224577,3.72780705,2459.3,2459.2,1.65597947]
[1728829224778,3.52455028,2459.3,2459.2,0.5920988]
[1728829224980,3.52455028,2459.3,2459.2,1.65597947]
[1728829225376,3.52455028,2459.3,2459.2,0.5920988]
[1728829225572,3.52455028,2459.3,2459.2,1.65597947]
[1728829226078,3.32108705,2459.3,2459.2,1.65597947]
[1728829227881,3.32108705,2459.3,2459.2,1.65590635]
[1728829228287,3.32108705,2459.3,2459.2,1.65591115]
[1728829229971,3.72780705,2459.3,2459.2,1.65591115]
[1728829230185,3.32108705,2459.3,2459.2,1.65591115]
[1728829230383,3.5245472,2459.3,2459.2,0.59203048]
[1728829231282,3.32108705,2459.3,2459.2,0.59203048]
[1728829231484,3.52454823,2459.3,2459.2,0.59203048]
[1728829231682,3.32108705,2459.3,2459.2,0.59203048]
[1728829232176,3.52454743,2459.3,2459.2,0.59203048]
[1728829232386,3.93126743,2459.3,2459.2,0.59203048]
[1728829232589,0.40673,2459.2,2459.1,1.47063067]
[1728829232790,7.32456038,2459.2,2458.9,1.06388067]
[1728829233083,0.40679,2458.9,2458.8,0.40679]
[1728829233291,3.52015015,2458.9,2458.8,0.40679]
[1728829233482,3.90545015,2458.9,2458.8,0.40679]
[1728829233984,3.70198977,2458.9,2458.8,0.40679]
[1728829234488,0.4068,2458.8,2458.7,1.47068067]
[1728829234685,0.4068,2458.8,2458.6,1.06388067]
[1728829234686,3.29859977,2458.8,2458.6,1.06388067]
[1728829234883,3.29859977,2458.8,2458.5,1.47072067]
[1728829234884,0.40683,2458.6,2458.5,1.47072067]
[1728829235085,2.78659625,2458.6,2458.5,1.47072067]
[1728829235282,2.78659625,2458.6,2458.5,0.59210075]
[1728829235484,3.17189625,2458.6,2458.5,0.59210075]
[1728829235691,3.17189625,2458.6,2458.5,0.40684]
[1728829235887,3.17189625,2458.6,2458.5,0.59205556]
[1728829236192,2.76506625,2458.6,2458.5,0.40684]
[1728829237278,1.7053,2458.6,2458.5,0.40684]
[1728829243090,1.58989977,2458.9,2458.8,0.4068]
[1728829243091,1.05976625,2458.9,2458.8,0.4068]
[1728829243293,1.32,2458.9,2458.8,0.4068]
[1728829247889,0.3937,2459.1,2458.9,0.40678]
[1728829248094,0.3937,2459.1,2459.0,0.4167]
[1728829248294,0.3937,2459.1,2459.0,0.82347]
[1728829248500,1.46156625,2459.2,2459.1,0.40675]
[1728829248794,1.46156625,2459.2,2459.1,0.79595]
[1728829248795,0.4018,2459.2,2459.1,0.79595]
[1728829249593,1.7218,2459.2,2459.1,0.79595]
[1728829262005,0.4018,2459.2,2459.1,2.11595]
[1728829262209,5.97506625,2459.4,2459.3,0.40672]
[1728829262412,6.79206625,2459.4,2459.3,0.40672]
[1728829263225,0.4103,2459.4,2459.3,1.72672]
[1728829263522,1.7303,2459.4,2459.3,0.40672]
[1728829267125,0.4103,2459.4,2459.3,1.72672]
[1728829267316,1.44426625,2459.6,2459.5,0.40668]
[1728829267515,2.88017,2459.6,2459.5,0.40668]
[1728829267813,2.88017,2459.6,2459.3,0.4179]
[1728829267814,2.4735,2459.6,2459.3,0.4179]
[1728829268014,2.4735,2459.6,2459.4,0.40669]
[1728829268015,0.40669,2459.5,2459.4,0.40669]
[1728829268416,1.72669,2459.5,2459.4,0.40669]
[1728829269016,1.32,2459.5,2459.4,0.40669]
[1728829269823,1.72668,2459.5,2459.4,0.40669]
[1728829271824,1.32,2459.5,2459.4,0.40669]
[1728829272025,1.72668,2459.5,2459.4,0.40669]
[1728829272224,1.32,2459.5,2459.4,0.40669]
[1728829272428,1.72668,2459.5,2459.4,0.40669]
[1728829272925,1.32,2459.5,2459.4,0.40669]
[1728829273723,1.72668,2459.5,2459.4,0.40669]
[1728829274321,1.32,2459.5,2459.4,0.40669]
[1728829276319,1.1535,2459.6,2459.5,0.40668]
[1728829276524,2.4735,2459.6,2459.5,0.40668]
[1728829277529,2.88017,2459.6,2459.5,0.40668]
[1728829280024,0.7717,2459.6,2459.5,1.72668]
[1728829281131,0.7717,2459.6,2459.5,0.40668]
[1728829282329,4.5278,2459.7,2459.5,5.3856]
[1728829282330,3.2078,2459.7,2459.5,5.3856]
[1728829282630,3.2078,2459.7,2459.6,1.72667]
[1728829283535,6.01086625,2460.0,2459.6,1.32]
[1728829283735,6.39676625,2460.0,2459.9,0.40662]
[1728829284033,5.337,2460.0,2459.9,0.40662]
[1728829284335,2.1292,2460.0,2459.9,0.40662]
[1728829285834,0.8092,2460.0,2459.9,1.72662]
[1728829286332,2.1292,2460.0,2459.9,0.40662]
[1728829288539,2.1292,2460.0,2459.9,0.80852]
[1728829289829,4.74726625,2460.3,2459.9,1.7219]
[1728829290031,1.44696625,2460.4,2460.2,1.72657]
[1728829290240,1.58989977,2460.5,2460.3,0.8219]
[1728829290241,1.32,2460.5,2460.3,0.8219]
[1728829290533,1.32,2460.5,2460.4,1.72653]
[1728829290736,1.7057,2460.6,2460.5,0.40652]
[1728829293840,1.32,2460.6,2460.5,0.40652]
[1728829294040,0.391,2460.7,2460.6,0.4065]
[1728829294247,1.7369,2460.9,2460.8,0.40647]
[1728829294833,0.4169,2460.9,2460.8,1.72647]
[1728829295242,1.7369,2460.9,2460.8,1.72647]
[1728829297040,1.32,2461.0,2460.9,0.40644]
[1728829297242,1.7432,2461.0,2460.9,0.40644]
[1728829297744,2.14964,2461.0,2460.9,0.40644]
[1728829297943,1.7432,2461.0,2460.9,0.40644]
[1728829303755,1.7432,2461.0,2460.8,1.32]
[1728829303951,1.32,2460.9,2460.7,0.40647]
[1728829304152,2.1371,2460.8,2460.7,0.40647]
[1728829305252,2.54357,2460.8,2460.7,0.40647]
[1728829305457,0.40649,2460.7,2460.6,0.40649]
[1728829305657,2.14069,2460.7,2460.6,0.40649]
[1728829306156,1.7342,2460.7,2460.6,0.40649]
[1728829308763,0.4142,2460.7,2460.6,1.72649]
[1728829309762,1.7342,2460.7,2460.2,0.4101]
[1728829310062,1.72652,2460.5,2460.4,0.40652]
[1728829310457,1.72652,2460.5,2460.4,1.72652]
[1728829313051,0.40652,2460.5,2460.4,1.72652]
[1728829313465,1.32,2460.6,2460.4,1.32]
[1728829313652,1.32,2460.6,2460.5,1.72652]
[1728829313961,0.4142,2460.7,2460.6,0.4065]
[1728829314164,0.4142,2460.7,2460.6,1.7265]
[1728829314664,3.6212,2460.8,2460.6,1.32]
[1728829314857,3.6212,2460.8,2460.7,2.11169]
[1728829315460,4.02767,2460.8,2460.7,2.11169]
[1728829315852,4.02767,2460.8,2460.7,1.72649]
[1728829316861,5.34767,2460.8,2460.7,1.72649]
[1728829317056,5.34767,2460.8,2460.7,1.32]
[1728829318859,3.6212,2460.8,2460.7,1.32]
[1728829319163,4.02767,2460.8,2460.7,1.72649]
[1728829319663,3.6212,2460.8,2460.7,1.72649]
[1728829320258,4.02767,2460.8,2460.7,1.72649]
[1728829320462,3.6212,2460.8,2460.6,1.7178]
[1728829320669,4.02768,2460.8,2460.7,0.40649]
[1728829324364,0.40649,2460.7,2460.6,1.72649]
[1728829324668,0.40649,2460.7,2460.6,0.40649]
[1728829324875,0.40649,2460.7,2460.4,0.7867]
[1728829324876,5.8041,2460.7,2460.1,0.094]
[1728829325165,1.72654,2460.4,2460.3,0.40654]
[1728829325558,2.12064,2460.4,2460.3,0.40654]
[1728829325774,0.40655,2460.3,2460.2,0.40656]
[1728829326067,1.72655,2460.3,2460.2,0.40656]
[1728829326270,2.12105,2460.3,2460.2,0.40656]
[1728829326467,2.12105,2460.3,2460.2,1.72656]
[1728829327770,0.40657,2460.2,2460.1,0.82638]
[1728829328269,3.61437,2460.2,2460.1,1.7398]
[1728829328861,3.61437,2460.2,2460.1,2.14638]
[1728829330071,3.61437,2460.2,2460.1,1.7398]
[1728829330364,3.61437,2460.2,2460.1,2.14638]
[1728829335266,3.61437,2460.2,2460.1,0.4198]
[1728829335468,4.67413625,2460.2,2460.1,1.7398]
[1728829335667,4.26756625,2460.2,2460.1,1.7398]
[1728829335866,4.26756625,2460.2,2460.1,2.14638]
[1728829336073,3.2078,2460.2,2460.1,2.14638]
[1728829338770,3.2078,2460.2,2460.1,7.27506067]
[1728829339369,3.2078,2460.2,2460.1,7.45911791]
[1728829340173,3.2078,2460.2,2460.1,2.14638]
[1728829340377,3.2078,2460.2,2460.1,6.21118]
[1728829340877,3.2078,2460.2,2460.1,2.14638]
[1728829341671,3.2078,2460.2,2460.1,6.21118]
[1728829342576,1.46626625,2460.6,2460.5,0.40652]
[1728829342776,1.68389977,2460.7,2460.5,1.32]
[1728829342777,3.05615602,2460.7,2460.5,1.32]
[1728829342978,1.46625625,2460.7,2460.6,0.4065]
[1728829343674,0.40649,2460.7,2460.6,0.4065]
[1728829343981,1.46631207,2460.7,2460.6,0.4065]
[1728829344280,1.99638977,2460.7,2460.6,0.4065]
[1728829344674,1.46645952,2460.7,2460.6,0.4065]
[1728829345469,0.40649,2460.7,2460.6,1.7265]
[1728829345673,1.46659613,2460.7,2460.6,1.7265]
[1728829345867,1.58989977,2460.7,2460.5,1.72651]
[1728829346078,2.78660343,2460.6,2460.5,0.40651]
[1728829346273,1.7265,2460.6,2460.5,0.40651]
[1728829346474,3.31639977,2460.6,2460.5,0.40651]
[1728829346879,1.7265,2460.6,2460.5,0.40651]
[1728829347279,3.31639977,2460.6,2460.5,0.40651]
[1728829347676,2.90989977,2460.6,2460.5,0.40651]
[1728829347878,2.38036297,2460.6,2460.5,0.40651]
[1728829348374,1.58989977,2460.6,2460.5,0.40651]
[1728829348580,1.06050273,2460.6,2460.5,0.40651]
[1728829349085,0.4065,2460.6,2460.5,0.40651]
[1728829349286,1.99639977,2460.6,2460.5,0.40651]
[1728829349586,2.90989977,2460.6,2460.3,1.32]
[1728829349775,2.90989977,2460.6,2460.3,1.72654]
[1728829349776,1.46720163,2460.4,2460.3,1.72654]
[1728829350177,1.06066163,2460.4,2460.3,1.72654]
[1728829350473,1.46719163,2460.4,2460.3,1.72654]
[1728829350786,5.57589977,2460.5,2460.3,1.32]
[1728829351080,1.06065964,2460.4,2460.3,1.72655]
[1728829351285,1.99642977,2460.4,2460.3,1.72655]
[1728829351485,1.46729962,2460.4,2460.3,1.72655]
[1728829352485,1.06076962,2460.4,2460.3,1.72655]
[1728829352687,1.46729962,2460.4,2460.3,1.72655]
[1728829353485,0.40653,2460.4,2460.3,1.72655]
[1728829353690,1.46732548,2460.4,2460.3,1.72655]
[1728829353985,1.46732449,2460.4,2460.3,1.72655]
[1728829354487,0.40653,2460.4,2460.3,1.72655]
[1728829354679,1.99642977,2460.4,2460.3,1.72655]
[1728829356480,1.58989977,2460.4,2460.3,1.72655]
[1728829356679,1.06099524,2460.4,2460.3,1.72655]
[1728829357483,1.06099524,2460.4,2460.3,1.91082396]
[1728829357685,0.82277,2460.8,2460.7,0.40649]
[1728829357987,0.82277,2460.8,2460.7,1.72649]
[1728829359187,2.41441592,2460.8,2460.7,1.72649]
[1728829359485,2.61776037,2460.8,2460.7,1.32]
[1728829361186,2.61776037,2460.8,2460.7,1.72649]
[1728829361486,2.61795575,2460.8,2460.7,1.72649]
[1728829362281,1.79518575,2460.8,2460.7,1.72649]
[1728829362482,1.5918413,2460.9,2460.8,0.40647]
[1728829362684,1.0613965,2460.9,2460.8,3.7465516]
[1728829362886,1.0613965,2460.9,2460.8,3.3400816]
[1728829363082,1.4699965,2461.0,2460.8,3.7465516]
[1728829363283,1.0613965,2460.9,2460.8,2.63703576]
[1728829363484,1.0613965,2461.0,2460.9,0.40645]
[1728829363685,1.0613965,2461.0,2460.9,1.72645]
[1728829364992,1.06103367,2461.1,2461.0,0.40644]
[1728829365190,1.06103367,2461.1,2461.0,1.72644]
[1728829365893,1.46745367,2461.1,2461.0,1.72644]
[1728829366194,1.5918413,2461.1,2461.0,1.32]
[1728829366397,2.20158975,2461.1,2461.0,1.32]
[1728829366592,1.9982613,2461.1,2461.0,1.32]
[1728829369805,0.40642,2461.1,2461.0,1.32]
[1728829370105,1.9982613,2461.1,2461.0,1.32]
[1728829370600,6.2647982,2461.1,2461.0,1.32]
[1728829371996,9.4725982,2461.1,2461.0,1.32]
[1728829372805,6.2647982,2461.1,2461.0,1.32]
[1728829373211,9.4725982,2461.1,2461.0,1.32]
[1728829373404,9.2692613,2461.1,2461.0,1.32]
[1728829373901,9.2692613,2461.1,2460.7,0.382]
[1728829373902,8.8628413,2461.1,2460.7,0.382]
[1728829374109,0.40647,2460.8,2460.7,0.78848]
[1728829374313,0.40647,2460.8,2460.7,2.10848]
[1728829374806,0.4129,2460.9,2460.7,2.10848]
[1728829375007,0.81936,2460.9,2460.8,1.72647]
[1728829375607,4.02716,2460.9,2460.8,1.72647]
[1728829376008,0.81936,2460.9,2460.8,1.72647]
[1728829376311,4.02716,2460.9,2460.8,1.72647]
[1728829376907,3.2078,2460.9,2460.8,1.72647]
[1728829379115,0.40644,2461.0,2460.9,0.40645]
[1728829379414,1.46677576,2461.1,2461.0,0.40644]
[1728829379712,1.46677576,2461.1,2461.0,2.14284]
[1728829379909,1.46677576,2461.1,2461.0,2.56324]
[1728829386010,1.46677576,2461.1,2460.6,1.06516576]
[1728829386207,0.40647,2460.8,2460.7,0.81637]
[1728829386410,0.40647,2460.8,2460.7,2.13637]
[1728829386613,0.80367,2460.8,2460.7,6.20037]
[1728829387118,0.3972,2460.8,2460.7,6.20037]
[1728829388719,0.80367,2460.8,2460.7,6.20037]
[1728829389214,0.80367,2460.8,2460.7,2.13637]
[1728829390015,0.3972,2460.8,2460.7,2.13637]
[1728829390316,5.08500576,2460.9,2460.7,1.7299]
[1728829390514,1.5918413,2461.0,2460.9,0.40645]
[1728829390515,1.88379576,2461.0,2460.9,0.40645]
[1728829390714,1.88379576,2461.0,2460.9,1.72645]
[1728829392818,0.82344,2461.0,2460.9,1.72645]
[1728829393323,0.417,2461.0,2460.9,1.72645]
[1728829393825,1.46677576,2461.1,2461.0,0.40644]
[1728829394125,1.46677576,2461.1,2461.0,2.11994]
[1728829395524,4.67457576,2461.1,2461.0,2.11994]
[1728829397421,5.2060713,2461.1,2461.0,2.11994]
[1728829397628,3.61423,2461.1,2461.0,2.11994]
[1728829397921,5.2060713,2461.1,2461.0,2.11994]
[1728829398325,3.61423,2461.1,2461.0,2.11994]
[1728829398531,5.2060713,2461.1,2461.0,2.11994]
[1728829399429,5.2060713,2461.1,2461.0,1.7135]
[1728829399626,5.40939866,2461.1,2461.0,1.7135]
[1728829400331,5.40939619,2461.1,2461.0,1.32]
[1728829400527,8.79432489,2461.1,2460.7,1.47506576]
[1728829400729,1.46792922,2460.8,2460.7,0.81639]
[1728829400925,1.46792922,2460.8,2460.7,0.4099]
[1728829401126,2.27352922,2460.8,2460.7,0.4099]
[1728829401423,2.27352922,2460.8,2460.7,1.6594234]
[1728829402232,2.27352922,2460.8,2460.7,2.9794234]
[1728829402527,2.80425883,2460.8,2460.7,2.9794234]
[1728829402923,1.21207,2460.8,2460.7,2.9794234]
[1728829403533,2.80425883,2460.8,2460.7,4.03613562]
[1728829405436,4.12425883,2460.8,2460.7,1.24106986]
[1728829405630,8.33428417,2460.8,2460.4,2.38631702]
[1728829405831,0.40652,2460.5,2460.4,2.38631702]
[1728829406031,3.64800435,2460.5,2460.3,2.38631702]
[1728829406238,3.16046059,2460.4,2460.3,1.32]
[1728829406438,3.36383567,2460.4,2460.3,1.50444506]
[1728829407240,3.16046059,2460.4,2460.3,1.32]
[1728829408343,0.40655,2460.3,2460.2,1.06631702]
[1728829408531,1.4680191,2460.3,2460.2,1.50437766]
[1728829408838,1.4680191,2460.3,2460.2,1.50437303]
[1728829409233,1.4680191,2460.3,2460.2,1.32]
[1728829412037,1.4680191,2460.3,2460.2,1.72657]
[1728829413243,0.40655,2460.3,2460.2,1.72657]
[1728829421940,1.161,2460.4,2460.2,1.32]
[1728829422242,0.777,2460.4,2460.3,1.72655]
[1728829422457,3.61433,2460.5,2460.4,0.40653]
[1728829422746,3.2078,2460.5,2460.4,3.45503]
[1728829422947,0.802,2460.8,2460.4,7.1125]
[1728829422948,1.0614691,2460.8,2460.4,7.1125]
[1728829423140,9.38619059,2460.9,2460.4,7.1125]
[1728829423141,4.2692691,2460.9,2460.7,1.32]
[1728829423451,4.2692691,2460.9,2460.5,0.4234]
[1728829423651,4.6757391,2460.9,2460.7,0.40647]
[1728829424336,4.2692691,2460.9,2460.7,0.40647]
[1728829424538,0.4065,2460.6,2460.5,2.14991]
[1728829424743,0.4065,2460.6,2460.5,1.7434]
[1728829424942,0.4065,2460.6,2460.5,2.14992]
[1728829427058,0.4065,2460.6,2460.5,1.7434]
[1728829427658,1.4679691,2460.6,2460.5,1.32]
[1728829428651,1.4679691,2460.6,2460.5,1.72652]
[1728829428854,4.6757691,2460.6,2460.5,1.72652]
[1728829429047,4.6757691,2460.6,2460.5,1.32]
[1728829432453,9.6532691,2460.6,2460.2,1.7206]
[1728829432653,0.40658,2460.1,2460.0,0.79859]
[1728829432955,4.93438,2460.2,2460.1,0.40658]
[1728829433154,4.02068,2460.2,2460.1,1.72658]
[1728829435355,4.02068,2460.2,2460.1,1.32]
[1728829436251,5.34068,2460.2,2460.1,1.32]
[1728829436451,4.9341,2460.2,2459.9,0.4062]
[1728829436654,0.40658,2460.1,2460.0,1.7266]
[1728829438251,6.4021491,2460.2,2460.1,0.40658]
[1728829438553,4.02068,2460.2,2460.1,1.72658]
[1728829441654,1.0614691,2460.4,2460.1,1.32]
[1728829441859,1.0614691,2460.4,2460.3,1.72655]
[1728829442058,4.80073059,2460.5,2460.3,1.32]
[1728829442059,4.2692691,2460.5,2460.3,1.32]
[1728829442359,3.2078,2460.5,2460.4,2.11093]
[1728829442953,3.2078,2460.5,2460.4,6.17493]
[1728829443161,3.2078,2460.5,2460.4,2.11093]
[1728829445867,4.6757891,2460.5,2460.4,2.11093]
[1728829446963,1.4679891,2460.5,2460.4,2.11093]
[1728829448256,1.0614691,2460.5,2460.4,2.11093]
[1728829448664,1.8802791,2460.6,2460.5,0.40652]
[1728829448963,1.88020447,2460.6,2460.5,1.72652]
[1728829449757,1.88033177,2460.6,2460.5,1.72652]
[1728829450152,1.59293059,2460.6,2460.5,1.72652]
[1728829450359,1.06169274,2460.7,2460.5,2.57059061]
[1728829450554,1.06169274,2460.7,2460.6,2.123]
[1728829450763,1.45459274,2460.7,2460.6,2.123]
[1728829450955,1.45459274,2460.7,2460.6,2.5167]
[1728829451163,1.98583059,2460.7,2460.6,2.5167]
[1728829451360,1.45472572,2460.7,2460.6,2.5167]
[1728829452367,1.06182572,2460.7,2460.6,2.70097386]
[1728829452563,1.06182572,2460.7,2460.6,2.5167]
[1728829453361,1.45791853,2460.8,2460.7,0.40649]
[1728829453563,1.45791853,2460.8,2460.7,1.72649]
[1728829453564,0.3963,2460.8,2460.7,1.72649]
[1728829453964,2.39570059,2460.8,2460.7,1.72649]
[1728829454269,1.98923059,2460.8,2460.7,1.72649]
[1728829457571,0.3963,2460.8,2460.7,1.72649]
[1728829457761,1.45768181,2460.8,2460.7,1.72649]
[1728829457956,1.98923059,2460.8,2460.7,1.72649]
[1728829458368,0.3963,2460.8,2460.7,1.72649]
[1728829458570,1.98923059,2460.8,2460.7,1.72649]
[1728829458976,0.3963,2460.8,2460.7,1.72649]
[1728829459277,1.45761989,2460.8,2460.7,1.72649]
[1728829459464,1.45762338,2460.8,2460.7,1.72649]
[1728829460374,0.3963,2460.8,2460.7,1.72649]
[1728829460765,1.45762244,2460.8,2460.7,1.72649]
[1728829460970,0.3963,2460.8,2460.7,1.72649]
[1728829461468,1.45757796,2460.8,2460.7,1.72649]
[1728829461865,0.3963,2460.8,2460.7,1.72649]
[1728829462272,1.45759869,2460.8,2460.7,1.72649]
[1728829463374,1.45754826,2460.8,2460.7,1.72649]
[1728829468676,1.06124826,2460.8,2460.7,1.72649]
[1728829470180,4.26904826,2460.9,2460.8,0.40647]
[1728829470385,4.26904826,2460.9,2460.8,2.14487]
[1728829472579,3.2078,2460.9,2460.8,2.14487]
[1728829480285,1.46344826,2461.0,2460.9,0.40645]
[1728829480677,1.46344826,2461.0,2460.9,0.81695]
[1728829481073,1.86988826,2461.0,2460.9,0.81695]
[1728829482181,2.40157059,2461.0,2460.9,0.81695]
[1728829482377,0.80864,2461.0,2460.9,0.81695]
[1728829482585,1.99513059,2461.0,2460.9,0.81695]
[1728829482891,0.4022,2461.0,2460.9,0.81695]
[1728829483184,1.99513059,2461.0,2460.9,0.81695]
[1728829485291,2.1984588,2461.0,2460.9,0.81695]
[1728829485674,2.19845966,2461.0,2460.9,0.81695]
[1728829485874,2.60489966,2461.0,2460.9,0.81695]
[1728829486388,2.19845966,2461.0,2460.9,0.81695]
[1728829486887,1.99513059,2461.0,2460.9,2.13695]
[1728829488283,2.19845233,2461.0,2460.9,2.13695]
[1728829489182,2.60489233,2461.0,2460.9,2.13695]
[1728829489388,2.60489233,2461.0,2460.9,1.72645]
[1728829489588,2.60489417,2461.0,2460.9,1.72645]
[1728829490285,2.60366914,2461.0,2460.9,1.72645]
[1728829490887,1.01196468,2461.0,2460.9,1.72645]